Workbook

Sheet Sheet1
B1: Finding the Largest Rectangle
B2: Inscribed in a Circle
B4: This DIGMath module lets you investigate
B5: the problem of finding the largest rectangle
B6: that fits inside the unit circle.
A12: Click each item below for suggestions and investigations
C13: Item 1
C14: Item 2
C15: Item 3 | L15: Graph of the rectangle area function A = 4xy =
L17: Select the horizontal distance x (0 to 1): x = | P17: =O18/100 -> 0.21
A18: To access/download all the DIGMath Apps for Calculus | O18: 21 | P18: =Sheet2!H7+O18*(Sheet2!H8-Sheet2!H7)/100 -> -0.58
A19: Click this link: | C19: DIGMath for Calculus | M19: The total area of this rectangle is | P19: =4*RR*SQRT(1-RR^2) -> 0.82
A21: Created by: Sheldon P. Gordon | M21: The value of the derivative is A' = | P21: =Sheet2!I25 -> 3.755884272
A22: Farmingdale State College
A23: Development of this module was supported by the
A24: NSF's Division of Undergraduate Education
A25: under grants DUE-0310123 and DUE-0442160.

Sheet Sheet2
B1: x | C1: f(x) | D1: f'(x) | H1: -1
H2: 1
A3: 0 | B3: =H1 -> -1.00 | C3: =4*x*SQRT(1-x^2) -> 0 | D3: =4*SQRT(1-x^2)-4*x^2/SQRT(1-x^2) ->  | E3: =x -> -1
A4: 1 | B4: =B3+dx -> -0.99 | C4: -0.5586267448 | D4: -27.22670932
A5: 2 | B5: -0.98 | C5: -0.7800701507 | D5: -18.50877641 | G5: delta x = | H5: =(xMax-xMin)/200 -> 0.01
A6: 3 | B6: -0.97 | C6: -0.9432470726 | D6: -14.50896207
A7: 4 | B7: -0.96 | C7: -1.0752 | D7: -12.04571429 | G7: xMin = | H7: -1 | I7: =C3 -> 0
A8: 5 | B8: -0.95 | C8: -1.18654962 | D8: -10.31225311 | G8: xMax = | H8: 1 | I8: =C83 -> -0.7838367177
A9: 6 | B9: -0.94 | C9: -1.282815903 | D9: -8.994812098
A10: 7 | B10: -0.93 | C10: -1.367321411 | D10: -7.942115084
A11: 8 | B11: -0.92 | C11: -1.442259561 | D11: -7.070860391 | G11: Point
A12: 9 | B12: -0.91 | C12: -1.509174026 | D12: -6.330795413 | G12: =x0 -> 0.21 | H12: 0
A13: 10 | B13: -0.90 | C13: -1.56920362 | D13: -5.6895102
A14: 11 | B14: -0.89 | C14: -1.623219468 | D14: -5.125005069 | G14: Vertical Line
A15: 12 | B15: -0.88 | C15: -1.671907366 | D15: -4.621729743 | G15: =G12 -> 0.21 | H15: 0
A16: 13 | B16: -0.87 | C16: -1.715819991 | D16: -4.168325372 | G16: =G12 -> 0.21 | H16: =H25 -> 0.7838367177
A17: 14 | B17: -0.86 | C17: -1.755411473 | D17: -3.756265754
A18: 15 | B18: -0.85 | C18: -1.791061138 | D18: -3.379002465
A19: 16 | B19: -0.84 | C19: -1.823090299 | D19: -3.031406619
A20: 17 | B20: -0.83 | C20: -1.851774457 | D20: -2.709392594
A21: 18 | B21: -0.82 | C21: -1.877352348 | D21: -2.409657411
A22: 19 | B22: -0.81 | C22: -1.9000328 | D22: -2.12949587
A23: 20 | B23: -0.80 | C23: -1.92 | D23: -1.866666667 | G23: Point on curve
A24: 21 | B24: -0.79 | C24: -1.937417621 | D24: -1.619293623
A25: 22 | B25: -0.78 | C25: -1.952432083 | D25: -1.38579161 | F25: x0 = | G25: =x0 -> 0.21 | H25: =LOOKUP(x0,B3:B203,C3:C203) -> 0.7838367177 | I25: =LOOKUP(x0,B3:B203,D3:D203) -> 3.755884272
A26: 23 | B26: -0.77 | C26: -1.965175168 | D26: -1.164810159 | G26: =x0 -> 0.21 | H26: 0 | I26: 0
A27: 24 | B27: -0.76 | C27: -1.97576614 | D27: -0.95518997
A28: 25 | B28: -0.75 | C28: -1.984313483 | D28: -0.755928946
A29: 26 | B29: -0.74 | C29: -1.990916332 | D29: -0.5661553838
A30: 27 | B30: -0.73 | C30: -1.995665663 | D30: -0.3851065908
A31: 28 | B31: -0.72 | C31: -1.998645301 | D31: -0.2121116737
A32: 29 | B32: -0.71 | C32: -1.999932759 | D32: -0.04657756596
A33: 30 | B33: -0.70 | C33: -1.99959996 | D33: 0.1120224067
A34: 31 | B34: -0.69 | C34: -1.997713853 | D34: 0.2641579519
A35: 32 | B35: -0.68 | C35: -1.994336942 | D35: 0.4102496336
A36: 33 | B36: =B35+dx -> -0.67 | C36: -1.989527743 | D36: 0.5506754072
A37: 34 | B37: -0.66 | C37: -1.983341181 | D37: 0.6857761101
A38: 35 | B38: -0.65 | C38: -1.97582894 | D38: 0.8158601018
A39: 36 | B39: -0.64 | C39: -1.967039766 | D39: 0.941207205
A40: 37 | B40: -0.63 | C40: -1.957019734 | D40: 1.06207207
A41: 38 | B41: -0.62 | C41: -1.945812488 | D41: 1.178687059
A42: 39 | B42: -0.61 | C42: -1.933459449 | D42: 1.291264734
A43: 40 | B43: -0.60 | C43: -1.92 | D43: 1.4
A44: 41 | B44: -0.59 | C44: -1.905471658 | D44: 1.505071979
A45: 42 | B45: -0.58 | C45: -1.88991022 | D45: 1.606645632
A46: 43 | B46: -0.57 | C46: -1.873349898 | D46: 1.704873181
A47: 44 | B47: -0.56 | C47: -1.85582344 | D47: 1.799895361
A48: 45 | B48: -0.55 | C48: -1.83736224 | D48: 1.891842515
A49: 46 | B49: -0.54 | C49: -1.817996436 | D49: 1.980835567
A50: 47 | B50: -0.53 | C50: -1.797755 | D50: 2.066986881
A51: 48 | B51: -0.52 | C51: -1.776665821 | D51: 2.150401023
A52: 49 | B52: -0.51 | C52: -1.754755778 | D52: 2.231175443
A53: 50 | B53: -0.50 | C53: -1.732050808 | D53: 2.309401077
A54: 51 | B54: -0.49 | C54: -1.708575968 | D54: 2.385162893
A55: 52 | B55: -0.48 | C55: -1.684355497 | D55: 2.458540378
A56: 53 | B56: -0.47 | C56: -1.65941286 | D56: 2.529607972
A57: 54 | B57: -0.46 | C57: -1.633770804 | D57: 2.598435466
A58: 55 | B58: -0.45 | C58: -1.607451399 | D58: 2.665088352
A59: 56 | B59: -0.44 | C59: -1.58047608 | D59: 2.729628151
A60: 57 | B60: -0.43 | C60: -1.552865686 | D60: 2.792112697
A61: 58 | B61: -0.42 | C61: -1.524640495 | D61: 2.852596408
A62: 59 | B62: -0.41 | C62: -1.495820257 | D62: 2.911130519
A63: 60 | B63: -0.40 | C63: -1.466424222 | D63: 2.967763307
A64: 61 | B64: -0.39 | C64: -1.436471176 | D64: 3.022540286
A65: 62 | B65: -0.38 | C65: -1.405979459 | D65: 3.07550439
A66: 63 | B66: -0.37 | C66: -1.374966996 | D66: 3.126696141
A67: 64 | B67: -0.36 | C67: =4*x*SQRT(1-x^2) -> -1.343451317 | D67: =4*SQRT(1-x^2)-4*x^2/SQRT(1-x^2) -> 3.176153797
A68: 65 | B68: =B67+dx -> -0.35 | C68: -1.31144958 | D68: 3.223913497
A69: 66 | B69: -0.34 | C69: -1.278978592 | D69: 3.270009385
A70: 67 | B70: -0.33 | C70: -1.24605483 | D70: 3.314473729
A71: 68 | B71: -0.32 | C71: -1.212694455 | D71: 3.357337031
A72: 69 | B72: -0.31 | C72: -1.17891333 | D72: 3.398628124
A73: 70 | B73: -0.30 | C73: -1.144727042 | D73: 3.438374264
A74: 71 | B74: -0.29 | C74: -1.110150909 | D74: 3.476601217
A75: 72 | B75: -0.28 | C75: -1.0752 | D75: 3.513333333
A76: 73 | B76: -0.27 | C76: -1.039889148 | D76: 3.548593624
A77: 74 | B77: -0.26 | C77: -1.004232961 | D77: 3.582403824
A78: 75 | B78: -0.25 | C78: -0.9682458366 | D78: 3.614784456
A79: 76 | B79: -0.24 | C79: -0.9319419724 | D79: 3.645754887
A80: 77 | B80: -0.23 | C80: -0.8953353785 | D80: 3.675333377
A81: 78 | B81: -0.22 | C81: -0.8584398872 | D81: 3.703537134
A82: 79 | B82: -0.21 | C82: -0.8212691642 | D82: 3.730382357
A83: 80 | B83: -0.20 | C83: -0.7838367177 | D83: 3.755884272
A84: 81 | B84: -0.19 | C84: -0.7461559086 | D84: 3.78005718
A85: 82 | B85: -0.18 | C85: -0.7082399593 | D85: 3.802914485
A86: 83 | B86: -0.17 | C86: -0.6701019624 | D86: 3.824468728
A87: 84 | B87: -0.16 | C87: -0.6317548892 | D87: 3.844731622
A88: 85 | B88: -0.15 | C88: -0.593211598 | D88: 3.863714074
A89: 86 | B89: -0.14 | C89: -0.554484842 | D89: 3.881426212
A90: 87 | B90: -0.13 | C90: -0.5155872768 | D90: 3.897877412
A91: 88 | B91: -0.12 | C91: -0.476531468 | D91: 3.913076313
A92: 89 | B92: -0.11 | C92: -0.4373298984 | D92: 3.927030844
A93: 90 | B93: -0.10 | C93: -0.3979949748 | D93: 3.939748236
A94: 91 | B94: -0.09 | C94: -0.3585390355 | D94: 3.951235039
A95: 92 | B95: -0.08 | C95: -0.3189743563 | D95: 3.961497139
A96: 93 | B96: -0.07 | C96: -0.2793131576 | D96: 3.970539768
A97: 94 | B97: -0.06 | C97: -0.2395676105 | D97: 3.978367518
A98: 95 | B98: -0.05 | C98: -0.1997498436 | D98: 3.984984348
A99: 96 | B99: -0.04 | C99: -0.1598719488 | D99: 3.990393593
A100: 97 | B100: -0.03 | C100: -0.1199459878 | D100: 3.994597974
A101: 98 | B101: -0.02 | C101: -0.0799839984 | D101: 3.9975996
A102: 99 | B102: -0.01 | C102: -0.03999799995 | D102: 3.999399975
A103: 100 | B103: 0.00 | C103: 3.011479954e-15 | D103: 4
A104: 101 | B104: =B103+dx -> 0.01 | C104: 0.03999799995 | D104: 3.999399975
A105: 102 | B105: 0.02 | C105: 0.0799839984 | D105: 3.9975996
A106: 103 | B106: 0.03 | C106: 0.1199459878 | D106: 3.994597974
A107: 104 | B107: 0.04 | C107: 0.1598719488 | D107: 3.990393593
A108: 105 | B108: 0.05 | C108: 0.1997498436 | D108: 3.984984348
A109: 106 | B109: 0.06 | C109: 0.2395676105 | D109: 3.978367518
A110: 107 | B110: 0.07 | C110: 0.2793131576 | D110: 3.970539768
A111: 108 | B111: 0.08 | C111: 0.3189743563 | D111: 3.961497139
A112: 109 | B112: 0.09 | C112: 0.3585390355 | D112: 3.951235039
A113: 110 | B113: 0.10 | C113: 0.3979949748 | D113: 3.939748236
A114: 111 | B114: 0.11 | C114: 0.4373298984 | D114: 3.927030844
A115: 112 | B115: 0.12 | C115: 0.476531468 | D115: 3.913076313
A116: 113 | B116: 0.13 | C116: 0.5155872768 | D116: 3.897877412
A117: 114 | B117: 0.14 | C117: 0.554484842 | D117: 3.881426212
A118: 115 | B118: 0.15 | C118: 0.593211598 | D118: 3.863714074
A119: 116 | B119: 0.16 | C119: 0.6317548892 | D119: 3.844731622
A120: 117 | B120: 0.17 | C120: 0.6701019624 | D120: 3.824468728
A121: 118 | B121: 0.18 | C121: 0.7082399593 | D121: 3.802914485
A122: 119 | B122: 0.19 | C122: 0.7461559086 | D122: 3.78005718
A123: 120 | B123: 0.20 | C123: 0.7838367177 | D123: 3.755884272
A124: 121 | B124: 0.21 | C124: 0.8212691642 | D124: 3.730382357
A125: 122 | B125: 0.22 | C125: 0.8584398872 | D125: 3.703537134
A126: 123 | B126: 0.23 | C126: 0.8953353785 | D126: 3.675333377
A127: 124 | B127: 0.24 | C127: 0.9319419724 | D127: 3.645754887
A128: 125 | B128: 0.25 | C128: 0.9682458366 | D128: 3.614784456
A129: 126 | B129: 0.26 | C129: 1.004232961 | D129: 3.582403824
A130: 127 | B130: 0.27 | C130: 1.039889148 | D130: 3.548593624
A131: 128 | B131: 0.28 | C131: =4*x*SQRT(1-x^2) -> 1.0752 | D131: =4*SQRT(1-x^2)-4*x^2/SQRT(1-x^2) -> 3.513333333
A132: 129 | B132: 0.29 | C132: 1.110150909 | D132: 3.476601217
A133: 130 | B133: 0.30 | C133: 1.144727042 | D133: 3.438374264
A134: 131 | B134: 0.31 | C134: 1.17891333 | D134: 3.398628124
A135: 132 | B135: 0.32 | C135: 1.212694455 | D135: 3.357337031
A136: 133 | B136: 0.33 | C136: 1.24605483 | D136: 3.314473729
A137: 134 | B137: 0.34 | C137: 1.278978592 | D137: 3.270009385
A138: 135 | B138: 0.35 | C138: 1.31144958 | D138: 3.223913497
A139: 136 | B139: 0.36 | C139: 1.343451317 | D139: 3.176153797
A140: 137 | B140: 0.37 | C140: 1.374966996 | D140: 3.126696141
A141: 138 | B141: 0.38 | C141: 1.405979459 | D141: 3.07550439
A142: 139 | B142: 0.39 | C142: 1.436471176 | D142: 3.022540286
A143: 140 | B143: 0.40 | C143: 1.466424222 | D143: 2.967763307
A144: 141 | B144: 0.41 | C144: 1.495820257 | D144: 2.911130519
A145: 142 | B145: 0.42 | C145: 1.524640495 | D145: 2.852596408
A146: 143 | B146: 0.43 | C146: 1.552865686 | D146: 2.792112697
A147: 144 | B147: 0.44 | C147: 1.58047608 | D147: 2.729628151
A148: 145 | B148: 0.45 | C148: 1.607451399 | D148: 2.665088352
A149: 146 | B149: 0.46 | C149: 1.633770804 | D149: 2.598435466
A150: 147 | B150: 0.47 | C150: 1.65941286 | D150: 2.529607972
A151: 148 | B151: 0.48 | C151: 1.684355497 | D151: 2.458540378
A152: 149 | B152: 0.49 | C152: 1.708575968 | D152: 2.385162893
A153: 150 | B153: 0.50 | C153: 1.732050808 | D153: 2.309401077
A154: 151 | B154: 0.51 | C154: 1.754755778 | D154: 2.231175443
A155: 152 | B155: 0.52 | C155: 1.776665821 | D155: 2.150401023
A156: 153 | B156: 0.53 | C156: 1.797755 | D156: 2.066986881
A157: 154 | B157: 0.54 | C157: 1.817996436 | D157: 1.980835567
A158: 155 | B158: 0.55 | C158: 1.83736224 | D158: 1.891842515
A159: 156 | B159: 0.56 | C159: 1.85582344 | D159: 1.799895361
A160: 157 | B160: 0.57 | C160: 1.873349898 | D160: 1.704873181
A161: 158 | B161: 0.58 | C161: 1.88991022 | D161: 1.606645632
A162: 159 | B162: 0.59 | C162: 1.905471658 | D162: 1.505071979
A163: 160 | B163: 0.60 | C163: 1.92 | D163: 1.4
A164: 161 | B164: 0.61 | C164: 1.933459449 | D164: 1.291264734
A165: 162 | B165: 0.62 | C165: 1.945812488 | D165: 1.178687059
A166: 163 | B166: 0.63 | C166: 1.957019734 | D166: 1.06207207
A167: 164 | B167: 0.64 | C167: 1.967039766 | D167: 0.941207205
A168: 165 | B168: =B167+dx -> 0.65 | C168: 1.97582894 | D168: 0.8158601018
A169: 166 | B169: 0.66 | C169: 1.983341181 | D169: 0.6857761101
A170: 167 | B170: 0.67 | C170: 1.989527743 | D170: 0.5506754072
A171: 168 | B171: 0.68 | C171: 1.994336942 | D171: 0.4102496336
A172: 169 | B172: 0.69 | C172: 1.997713853 | D172: 0.2641579519
A173: 170 | B173: 0.70 | C173: 1.99959996 | D173: 0.1120224067
A174: 171 | B174: 0.71 | C174: 1.999932759 | D174: -0.04657756596
A175: 172 | B175: 0.72 | C175: 1.998645301 | D175: -0.2121116737
A176: 173 | B176: 0.73 | C176: 1.995665663 | D176: -0.3851065908
A177: 174 | B177: 0.74 | C177: 1.990916332 | D177: -0.5661553838
A178: 175 | B178: 0.75 | C178: 1.984313483 | D178: -0.755928946
A179: 176 | B179: 0.76 | C179: 1.97576614 | D179: -0.95518997
A180: 177 | B180: 0.77 | C180: 1.965175168 | D180: -1.164810159
A181: 178 | B181: 0.78 | C181: 1.952432083 | D181: -1.38579161
A182: 179 | B182: 0.79 | C182: 1.937417621 | D182: -1.619293623
A183: 180 | B183: 0.80 | C183: 1.92 | D183: -1.866666667
A184: 181 | B184: 0.81 | C184: 1.9000328 | D184: -2.12949587
A185: 182 | B185: 0.82 | C185: 1.877352348 | D185: -2.409657411
A186: 183 | B186: 0.83 | C186: 1.851774457 | D186: -2.709392594
A187: 184 | B187: 0.84 | C187: 1.823090299 | D187: -3.031406619
A188: 185 | B188: 0.85 | C188: 1.791061138 | D188: -3.379002465
A189: 186 | B189: 0.86 | C189: 1.755411473 | D189: -3.756265754
A190: 187 | B190: 0.87 | C190: 1.715819991 | D190: -4.168325372
A191: 188 | B191: 0.88 | C191: 1.671907366 | D191: -4.621729743
A192: 189 | B192: 0.89 | C192: 1.623219468 | D192: -5.125005069
A193: 190 | B193: 0.90 | C193: 1.56920362 | D193: -5.6895102
A194: 191 | B194: 0.91 | C194: 1.509174026 | D194: -6.330795413
A195: 192 | B195: 0.92 | C195: =4*x*SQRT(1-x^2) -> 1.442259561 | D195: =4*SQRT(1-x^2)-4*x^2/SQRT(1-x^2) -> -7.070860391
A196: 193 | B196: 0.93 | C196: 1.367321411 | D196: -7.942115084
A197: 194 | B197: 0.94 | C197: 1.282815903 | D197: -8.994812098
A198: 195 | B198: 0.95 | C198: 1.18654962 | D198: -10.31225311
A199: 196 | B199: 0.96 | C199: 1.0752 | D199: -12.04571429
A200: 197 | B200: 0.97 | C200: 0.9432470726 | D200: -14.50896207
... 4 more rows

Sheet Sheet3
A1: =xMin -> -1 | B1: =9 -> 9
A2: =A1+dx -> -0.99 | B2: =9 -> 9
A3: -0.98 | B3: =9 -> 9
A4: -0.97 | B4: =9 -> 9
A5: -0.96 | B5: =9 -> 9
A6: -0.95 | B6: =9 -> 9
A7: -0.94 | B7: =9 -> 9
A8: -0.93 | B8: =9 -> 9
A9: -0.92 | B9: =9 -> 9
A10: -0.91 | B10: =9 -> 9
A11: -0.9 | B11: =9 -> 9
A12: -0.89 | B12: =9 -> 9
A13: -0.88 | B13: =9 -> 9
A14: -0.87 | B14: =9 -> 9
A15: -0.86 | B15: =9 -> 9
A16: -0.85 | B16: =9 -> 9
A17: -0.84 | B17: =9 -> 9
A18: -0.83 | B18: =9 -> 9
A19: -0.82 | B19: =9 -> 9
A20: -0.81 | B20: =9 -> 9
A21: -0.8 | B21: =9 -> 9
A22: -0.79 | B22: =9 -> 9
A23: -0.78 | B23: =9 -> 9
A24: -0.77 | B24: =9 -> 9
A25: -0.76 | B25: =9 -> 9
A26: -0.75 | B26: =9 -> 9
A27: -0.74 | B27: =9 -> 9
A28: -0.73 | B28: =9 -> 9
A29: -0.72 | B29: =9 -> 9
A30: -0.71 | B30: =9 -> 9
A31: -0.7 | B31: =9 -> 9
A32: -0.69 | B32: =9 -> 9
A33: -0.68 | B33: =9 -> 9
A34: -0.67 | B34: =9 -> 9
A35: -0.66 | B35: =9 -> 9
A36: -0.65 | B36: =9 -> 9
A37: -0.64 | B37: =9 -> 9
A38: -0.63 | B38: =9 -> 9
A39: -0.62 | B39: =9 -> 9
A40: -0.61 | B40: =9 -> 9
A41: -0.6 | B41: =9 -> 9
A42: -0.59 | B42: =9 -> 9
A43: -0.58 | B43: =9 -> 9
A44: -0.57 | B44: =9 -> 9
A45: -0.56 | B45: =9 -> 9
A46: -0.55 | B46: =9 -> 9
A47: -0.54 | B47: =9 -> 9
A48: -0.53 | B48: =9 -> 9
A49: -0.52 | B49: =9 -> 9
A50: -0.51 | B50: =9 -> 9
A51: -0.5 | B51: =9 -> 9
A52: -0.49 | B52: =9 -> 9
A53: -0.48 | B53: =9 -> 9
A54: -0.47 | B54: =9 -> 9
A55: -0.46 | B55: =9 -> 9
A56: -0.45 | B56: =9 -> 9
A57: -0.44 | B57: =9 -> 9
A58: -0.43 | B58: =9 -> 9
A59: -0.42 | B59: =9 -> 9
A60: -0.41 | B60: =9 -> 9
A61: -0.4 | B61: =9 -> 9
A62: -0.39 | B62: =9 -> 9
A63: -0.38 | B63: =9 -> 9
A64: -0.37 | B64: =9 -> 9
A65: -0.36 | B65: =9 -> 9
A66: =A65+dx -> -0.35 | B66: =9 -> 9
A67: -0.34 | B67: =9 -> 9
A68: -0.33 | B68: =9 -> 9
A69: -0.32 | B69: =9 -> 9
A70: -0.31 | B70: =9 -> 9
A71: -0.3 | B71: =9 -> 9
A72: -0.29 | B72: =9 -> 9
A73: -0.28 | B73: =9 -> 9
A74: -0.27 | B74: =9 -> 9
A75: -0.26 | B75: =9 -> 9
A76: -0.25 | B76: =9 -> 9
A77: -0.24 | B77: =9 -> 9
A78: -0.23 | B78: =9 -> 9
A79: -0.22 | B79: =9 -> 9
A80: -0.21 | B80: =9 -> 9
A81: -0.2 | B81: =9 -> 9
A82: -0.19 | B82: =9 -> 9
A83: -0.18 | B83: =9 -> 9
A84: -0.17 | B84: =9 -> 9
A85: -0.16 | B85: =9 -> 9
A86: -0.15 | B86: =9 -> 9
A87: -0.14 | B87: =9 -> 9
A88: -0.13 | B88: =9 -> 9
A89: -0.12 | B89: =9 -> 9
A90: -0.11 | B90: =9 -> 9
A91: -0.1 | B91: =9 -> 9
A92: -0.09 | B92: =9 -> 9
A93: -0.08 | B93: =9 -> 9
A94: -0.07 | B94: =9 -> 9
A95: -0.06 | B95: =9 -> 9
A96: -0.05 | B96: =9 -> 9
A97: -0.04 | B97: =9 -> 9
A98: -0.03 | B98: =9 -> 9
A99: -0.02 | B99: =9 -> 9
A100: -0.01 | B100: =9 -> 9
A101: 7.528699886e-16 | B101: =9 -> 9
A102: 0.01 | B102: =9 -> 9
A103: 0.02 | B103: =9 -> 9
A104: 0.03 | B104: =9 -> 9
A105: 0.04 | B105: =9 -> 9
A106: 0.05 | B106: =9 -> 9
A107: 0.06 | B107: =9 -> 9
A108: 0.07 | B108: =9 -> 9
A109: 0.08 | B109: =9 -> 9
A110: 0.09 | B110: =9 -> 9
A111: 0.1 | B111: =9 -> 9
A112: 0.11 | B112: =9 -> 9
A113: 0.12 | B113: =9 -> 9
A114: 0.13 | B114: =9 -> 9
A115: 0.14 | B115: =9 -> 9
A116: 0.15 | B116: =9 -> 9
A117: 0.16 | B117: =9 -> 9
A118: 0.17 | B118: =9 -> 9
A119: 0.18 | B119: =9 -> 9
A120: 0.19 | B120: =9 -> 9
A121: 0.2 | B121: =9 -> 9
A122: 0.21 | B122: =9 -> 9
A123: 0.22 | B123: =9 -> 9
A124: 0.23 | B124: =9 -> 9
A125: 0.24 | B125: =9 -> 9
A126: 0.25 | B126: =9 -> 9
A127: 0.26 | B127: =9 -> 9
A128: 0.27 | B128: =9 -> 9
A129: 0.28 | B129: =9 -> 9
A130: =A129+dx -> 0.29 | B130: =9 -> 9
A131: 0.3 | B131: =9 -> 9
A132: 0.31 | B132: =9 -> 9
A133: 0.32 | B133: =9 -> 9
A134: 0.33 | B134: =9 -> 9
A135: 0.34 | B135: =9 -> 9
A136: 0.35 | B136: =9 -> 9
A137: 0.36 | B137: =9 -> 9
A138: 0.37 | B138: =9 -> 9
A139: 0.38 | B139: =9 -> 9
A140: 0.39 | B140: =9 -> 9
A141: 0.4 | B141: =9 -> 9
A142: 0.41 | B142: =9 -> 9
A143: 0.42 | B143: =9 -> 9
A144: 0.43 | B144: =9 -> 9
A145: 0.44 | B145: =9 -> 9
A146: 0.45 | B146: =9 -> 9
A147: 0.46 | B147: =9 -> 9
A148: 0.47 | B148: =9 -> 9
A149: 0.48 | B149: =9 -> 9
A150: 0.49 | B150: =9 -> 9
A151: 0.5 | B151: =9 -> 9
A152: 0.51 | B152: =9 -> 9
A153: 0.52 | B153: =9 -> 9
A154: 0.53 | B154: =9 -> 9
A155: 0.54 | B155: =9 -> 9
A156: 0.55 | B156: =9 -> 9
A157: 0.56 | B157: =9 -> 9
A158: 0.57 | B158: =9 -> 9
A159: 0.58 | B159: =9 -> 9
A160: 0.59 | B160: =9 -> 9
A161: 0.6 | B161: =9 -> 9
A162: 0.61 | B162: =9 -> 9
A163: 0.62 | B163: =9 -> 9
A164: 0.63 | B164: =9 -> 9
A165: 0.64 | B165: =9 -> 9
A166: 0.65 | B166: =9 -> 9
A167: 0.66 | B167: =9 -> 9
A168: 0.67 | B168: =9 -> 9
A169: 0.68 | B169: =9 -> 9
A170: 0.69 | B170: =9 -> 9
A171: 0.7 | B171: =9 -> 9
A172: 0.71 | B172: =9 -> 9
A173: 0.72 | B173: =9 -> 9
A174: 0.73 | B174: =9 -> 9
A175: 0.74 | B175: =9 -> 9
A176: 0.75 | B176: =9 -> 9
A177: 0.76 | B177: =9 -> 9
A178: 0.77 | B178: =9 -> 9
A179: 0.78 | B179: =9 -> 9
A180: 0.79 | B180: =9 -> 9
A181: 0.8 | B181: =9 -> 9
A182: 0.81 | B182: =9 -> 9
A183: 0.82 | B183: =9 -> 9
A184: 0.83 | B184: =9 -> 9
A185: 0.84 | B185: =9 -> 9
A186: 0.85 | B186: =9 -> 9
A187: 0.86 | B187: =9 -> 9
A188: 0.87 | B188: =9 -> 9
A189: 0.88 | B189: =9 -> 9
A190: 0.89 | B190: =9 -> 9
A191: 0.9 | B191: =9 -> 9
A192: 0.91 | B192: =9 -> 9
A193: 0.92 | B193: =9 -> 9
A194: =A193+dx -> 0.93 | B194: =9 -> 9
A195: 0.94 | B195: =9 -> 9
A196: 0.95 | B196: =9 -> 9
A197: 0.96 | B197: =9 -> 9
A198: 0.97 | B198: =9 -> 9
A199: 0.98 | B199: =9 -> 9
A200: 0.99 | B200: =9 -> 9
... 803 more rows
